[Event "GER-chT Youth Countries 2018"]
[Site "Wurzburg"]
[Date "2018.10.03"]
[Round "2"]
[White "Farokhi, Keyvan"]
[Black "Dietz, Kristin"]
[Result "1/2-1/2"]
[ECO "A34"]
[WhiteElo "1855"]
[BlackElo "1762"]
[Annotator "NA"]
[PlyCount "141"]
[EventDate "2018.10.02"]
[EventType "team-tourn"]
[EventCountry "GER"]
[SourceTitle "playchess.com"]
[Source "ChessBase"]
[SourceQuality "1"]
[TimeControl "40/5400+30:1800+30"]

1. c4 {[%emt 0:00:00]} c5 {[%emt 0:00:00]} 2. g3 {[%emt 0:00:00]} Nf6 {[%emt 0:00:08]} 3. Nc3 {[%emt 0:00:23]} d5 {[%emt 0:00:35]} 4. cxd5 {[%emt 0:00:16]} Nxd5 {[%emt 0:00:06]} 5. Bg2 {[%emt 0:00:24]} Nc7 {[%emt 0:00:17]} 6. Nf3 {[%emt 0:01:31]} Nc6 {[%emt 0:00:26]} 7. d3 {[%emt 0:00:54]} e5 {[%emt 0:01:01]} 8. O-O {[%emt 0:00:44]} Be7 {[%emt 0:01:11]} 9. Be3 {[%emt 0:00:24]} O-O {[%emt 0:00:42]} 10. Nd2 {[%emt 0:01:19]} Rb8 {[%emt 0:09:56]} 11. Nc4 {[%emt 0:05:12]} f6 {[%emt 0:07:40]} 12. Qb3 {[%emt 0:02:58]} Be6 {[%emt 0:00:43]} 13. Bxc6 {[%emt 0:01:59]} bxc6 {[%emt 0:00:15]} 14. Qa4 {[%emt 0:03:03]} Nb5 {[%emt 0:03:17]} 15. f4 {[%emt 0:15:06]} Nd4 {[%emt 0:15:53]} 16. fxe5 {[%emt 0:23:36]} Rb4 {[%emt 0:03:33]} 17. Qa5 {[%emt 0:04:43]} Bxc4 {[%emt 0:07:00]} 18. Qxd8 {[%emt 0:00:13]} Rxd8 {[%emt 0:00:35]} 19. exf6 {[%emt 0:00:37]} Bxf6 {[%emt 0:00:24]} 20. dxc4 {[%emt 0:00:37]} Rxb2 {[%emt 0:01:24]} 21. Rad1 {[%emt 0:06:00]} Re8 {[%emt 0:04:30]} 22. Rd3 {[%emt 0:06:36]} Rc2 {[%emt 0:03:33]} 23. Na4 {[%emt 0:05:27]} Nxe2+ {[%emt 0:10:32]} 24. Kh1 {[%emt 0:00:49]} Rxc4 {[%emt 0:01:39]} 25. Nxc5 {[%emt 0:00:45]} Nc3 {[%emt 0:03:51]} 26. Nd7 {[%emt 0:03:14]} Nd5 {[%emt 0:01:35]} 27. Nxf6+ {[%emt 0:00:37]} Nxf6 {[%emt 0:00:11]} 28. Bxa7 {[%emt 0:02:13]} Ra4 {[%emt 0:00:11]} 29. Bd4 {[%emt 0:00:43]} Rxa2 {[%emt 0:00:14]} 30. Rf2 {[%emt 0:02:03]} Rxf2 {[%emt 0:02:15]} 31. Bxf2 {[%emt 0:00:07]} Ne4 {[%emt 0:01:49]} 32. Kg2 {[%emt 0:01:46]} Nxf2 {[%emt 0:01:05]} 33. Kxf2 {[%emt 0:00:06]} Kf7 {[%emt 0:00:23]} 34. Rd6 {[%emt 0:01:37]} Rc8 {[%emt 0:00:59]} 35. Ke3 {[%emt 0:00:31]} Ke7 {[%emt 0:01:06]} 36. Rd4 {[%emt 0:00:40]} c5 {[%emt 0:00:54]} 37. Rg4 {[%emt 0:00:17]} g6 {[%emt 0:01:28]} 38. Rh4 {[%emt 0:01:06]} h5 {[%emt 0:00:19]} 39. Kd3 {[%emt 0:01:13]} Kd6 {[%emt 0:01:07]} 40. g4 {[%emt 0:01:21]} hxg4 {[%emt 0:02:06]} 41. Rxg4 {[%emt 0:30:08]} Rg8 {[%emt 0:32:26]} 42. h4 {[%emt 0:00:08]} Kc6 {[%emt 0:01:46]} 43. Rg5 {[%emt 0:00:12]} Rd8+ {[%emt 0:00:46]} 44. Kc3 {[%emt 0:00:21]} Rd6 {[%emt 0:00:22]} 45. h5 {[%emt 0:00:11]} gxh5 46. Rxh5 {[%emt 0:00:07]} Rg6 {[%emt 0:04:26]} 47. Rh3 {[%emt 0:00:32]} Kb5 {[%emt 0:00:16]} 48. Kc2 {[%emt 0:00:21]} Rg4 {[%emt 0:05:30]} 49. Kb2 {[%emt 0:00:30]} Kb4 {[%emt 0:02:02]} 50. Rb3+ {[%emt 0:00:26]} Kc4 {[%emt 0:00:31]} 51. Rh3 {[%emt 0:00:13]} Kd4 {[%emt 0:00:26]} 52. Kc2 {[%emt 0:00:11]} c4 {[%emt 0:00:24]} 53. Kc1 {[%emt 0:00:36]} Re4 {[%emt 0:01:13]} 54. Kc2 {[%emt 0:00:24]} Rg4 {[%emt 0:01:26]} 55. Kc1 {[%emt 0:00:06]} Kc5 {[%emt 0:00:28]} 56. Kc2 {[%emt 0:00:06]} Kb4 {[%emt 0:00:26]} 57. Kc1 {[%emt 0:00:07]} Rg2 {[%emt 0:00:00]} 58. Rf3 {[%emt 0:00:00]} Rg4 {[%emt 0:00:00]} 59. Kc2 {[%emt 0:00:00]} Rd4 {[%emt 0:00:00]} 60. Rh3 {[%emt 0:00:00]} Rf4 {[%emt 0:00:00]} 61. Rg3 {[%emt 0:00:00]} Rf2+ {[%emt 0:00:00]} 62. Kc1 {[%emt 0:00:00]} Ra2 {[%emt 0:00:00]} 63. Kb1 {[%emt 0:00:00]} Ra3 {[%emt 0:00:00]} 64. Rxa3 {[%emt 0:00:00]} Kxa3 {[%emt 0:00:00]} 65. Kc2 {[%emt 0:00:00]} Ka4 {[%emt 0:00:00]} 66. Kc3 {[%emt 0:00:00]} Kb5 {[%emt 0:00:00]} 67. Kc2 {[%emt 0:00:00]} Kb4 {[%emt 0:00:00]} 68. Kb2 {[%emt 0:00:00]} c3+ {[%emt 0:00:00]} 69. Kc2 {[%emt 0:00:00]} Kc4 {[%emt 0:00:00]} 70. Kc1 {[%emt 0:00:00]} Kd3 {[%emt 0:00:00]} 71. Kd1 {[%emt 0:00:00]} 1/2-1/2

[Event "GER-chT Youth Countries 2018"]
[Site "Wurzburg"]
[Date "2018.10.03"]
[Round "2"]
[White "Hetzner, Hannes"]
[Black "Pubantz, Jan"]
[Result "0-1"]
[ECO "B90"]
[WhiteElo "1855"]
[BlackElo "2084"]
[Annotator "NA"]
[PlyCount "58"]
[EventDate "2018.10.02"]
[EventType "team-tourn"]
[EventCountry "GER"]
[SourceTitle "playchess.com"]
[Source "ChessBase"]
[SourceQuality "1"]
[TimeControl "40/5400+30:1800+30"]

1. e4 {[%emt 0:00:00]} c5 {[%emt 0:00:00]} 2. Nf3 {[%emt 0:00:00]} d6 {[%emt 0:00:00]} 3. d4 {[%emt 0:00:00]} cxd4 {[%emt 0:00:00]} 4. Nxd4 {[%emt 0:00:00]} Nf6 {[%emt 0:00:00]} 5. Nc3 {[%emt 0:00:02]} a6 {[%emt 0:00:00]} 6. h3 {[%emt 0:00:22]} e6 {[%emt 0:00:22]} 7. g4 {[%emt 0:00:37]} h6 {[%emt 0:00:10]} 8. Bg2 {[%emt 0:03:15]} g5 {[%emt 0:00:14]} 9. Be3 {[%emt 0:04:10]} Nbd7 {[%emt 0:00:08]} 10. h4 {[%emt 0:04:42]} Rg8 {[%emt 0:00:09]} 11. f3 {[%emt 0:07:12]} Ne5 {[%emt 0:00:17]} 12. Qe2 {[%emt 0:03:25]} b5 {[%emt 0:02:58]} 13. a3 {[%emt 0:11:34]} Bb7 {[%emt 0:01:25]} 14. O-O-O {[%emt 0:03:14]} Rc8 {[%emt 0:00:54]} 15. hxg5 {[%emt 0:05:53]} hxg5 {[%emt 0:02:25]} 16. Bxg5 {[%emt 0:07:55]} Rxg5 {[%emt 0:05:26]} 17. f4 {[%emt 0:00:44]} Rg8 {[%emt 0:05:50]} 18. fxe5 {[%emt 0:04:03]} Nxg4 {[%emt 0:00:10]} 19. Bh3 {[%emt 0:10:50]} Rxc3 {[%emt 0:37:14]} 20. bxc3 {[%emt 0:02:32]} Nxe5 {[%emt 0:14:05]} 21. Rdg1 {[%emt 0:07:23]} Rxg1+ {[%emt 0:01:55]} 22. Rxg1 {[%emt 0:00:06]} Qh4 {[%emt 0:02:24]} 23. Bg2 {[%emt 0:09:13]} Nc4 {[%emt 0:03:49]} 24. a4 {[%emt 0:02:44]} Qg3 {[%emt 0:02:10]} 25. Nf3 {[%emt 0:05:16]} Qf4+ {[%emt 0:00:41]} 26. Nd2 {[%emt 0:02:11]} Bh6 {[%emt 0:00:36]} 27. Rd1 {[%emt 0:01:08]} Nxd2 {[%emt 0:02:36]} 28. Rxd2 {[%emt 0:00:15]} bxa4 {[%emt 0:03:16]} 29. Kd1 {[%emt 0:01:13]} a3 {[%emt 0:00:50]} 0-1

[Event "GER-chT Youth Countries 2018"]
[Site "Wurzburg"]
[Date "2018.10.03"]
[Round "2"]
[White "Flach, Helene"]
[Black "Metzdorf, Matteo"]
[Result "1/2-1/2"]
[ECO "C06"]
[WhiteElo "1844"]
[BlackElo "1806"]
[Annotator "NA"]
[PlyCount "90"]
[EventDate "2018.10.02"]
[EventType "team-tourn"]
[EventCountry "GER"]
[SourceTitle "playchess.com"]
[Source "ChessBase"]
[SourceQuality "1"]
[TimeControl "40/5400+30:1800+30"]

1. e4 {[%emt 0:00:00]} e6 {[%emt 0:00:00]} 2. d4 {[%emt 0:00:00]} d5 {[%emt 0:00:00]} 3. Nd2 {[%emt 0:00:00]} Nf6 {[%emt 0:00:00]} 4. e5 {[%emt 0:00:00]} Nfd7 {[%emt 0:00:00]} 5. Bd3 {[%emt 0:00:02]} c5 {[%emt 0:00:02]} 6. c3 {[%emt 0:00:06]} Nc6 {[%emt 0:00:05]} 7. Ne2 {[%emt 0:00:10]} cxd4 {[%emt 0:00:22]} 8. cxd4 {[%emt 0:01:03]} f6 {[%emt 0:00:15]} 9. exf6 {[%emt 0:00:11]} Nxf6 {[%emt 0:00:12]} 10. Nf3 {[%emt 0:00:12]} Bd6 {[%emt 0:00:12]} 11. O-O {[%emt 0:00:14]} O-O {[%emt 0:00:10]} 12. Bf4 {[%emt 0:00:37]} Nh5 {[%emt 0:00:19]} 13. Bxd6 {[%emt 0:08:23]} Qxd6 {[%emt 0:01:19]} 14. a3 {[%emt 0:03:43]} Bd7 {[%emt 0:01:43]} 15. Rc1 {[%emt 0:05:03]} h6 {[%emt 0:11:59]} 16. Bg6 {[%emt 0:13:12]} Nf4 {[%emt 0:04:53]} 17. Nxf4 {[%emt 0:03:12]} Rxf4 {[%emt 0:01:06]} 18. Bb1 {[%emt 0:03:00]} Be8 {[%emt 0:20:17]} 19. Qd3 {[%emt 0:09:22]} g6 {[%emt 0:01:31]} 20. Rfe1 {[%emt 0:02:00]} Kg7 {[%emt 0:03:11]} 21. Qe3 {[%emt 0:03:23]} Bf7 {[%emt 0:04:06]} 22. Ne5 {[%emt 0:04:43]} Rf6 {[%emt 0:07:46]} 23. g3 {[%emt 0:09:38]} Rf8 {[%emt 0:05:20]} 24. Ng4 {[%emt 0:01:49]} Rh8 {[%emt 0:11:01]} 25. Nxf6 {[%emt 0:03:47]} Kxf6 {[%emt 0:00:12]} 26. Rc3 {[%emt 0:01:55]} Kg7 {[%emt 0:01:28]} 27. Qd2 {[%emt 0:04:46]} Rf8 {[%emt 0:02:13]} 28. Rf3 {[%emt 0:02:06]} b5 {[%emt 0:02:53]} 29. Rc1 {[%emt 0:02:57]} Rc8 {[%emt 0:01:48]} 30. Rfc3 {[%emt 0:02:45]} Be8 {[%emt 0:00:30]} 31. b4 {[%emt 0:04:22]} a6 {[%emt 0:01:32]} 32. h4 {[%emt 0:02:48]} Qe7 {[%emt 0:01:42]} 33. Qf4 {[%emt 0:01:53]} Bd7 {[%emt 0:02:43]} 34. Qg4 {[%emt 0:02:51]} Qf7 {[%emt 0:01:05]} 35. Rf3 {[%emt 0:01:16]} Qxf3 {[%emt 0:06:07]} 36. Qxf3 {[%emt 0:02:18]} Nxd4 {[%emt 0:00:34]} 37. Qd3 {[%emt 0:00:55]} Rxc1+ {[%emt 0:00:19]} 38. Kg2 {[%emt 0:00:11]} Nf5 {[%emt 0:01:18]} 39. Bc2 {[%emt 0:00:46]} d4 {[%emt 0:04:43]} 40. Qe4 {[%emt 0:02:26]} Kf6 {[%emt 0:01:40]} 41. Kh2 {[%emt 0:31:44]} h5 {[%emt 0:32:51]} 42. f3 {[%emt 0:00:00]} Rh1+ {[%emt 0:00:00]} 43. Kg2 {[%emt 0:00:00]} Rc1 {[%emt 0:00:00]} 44. Kh2 {[%emt 0:00:00]} Rh1+ {[%emt 0:00:00]} 45. Kg2 {[%emt 0:00:00]} Rc1 {[%emt 0:00:00]} 1/2-1/2

[Event "GER-chT Youth Countries 2018"]
[Site "Wurzburg"]
[Date "2018.10.03"]
[Round "2"]
[White "Muedder, Melanie"]
[Black "Deuer, Marius"]
[Result "1-0"]
[ECO "B34"]
[WhiteElo "1826"]
[BlackElo "1711"]
[Annotator "NA"]
[PlyCount "63"]
[EventDate "2018.10.02"]
[EventType "team-tourn"]
[EventCountry "GER"]
[SourceTitle "playchess.com"]
[Source "ChessBase"]
[SourceQuality "1"]
[TimeControl "40/5400+30:1800+30"]

1. e4 {[%emt 0:00:00]} c5 {[%emt 0:00:00]} 2. Nf3 {[%emt 0:00:00]} Nc6 {[%emt 0:00:00]} 3. d4 {[%emt 0:00:00]} cxd4 {[%emt 0:00:00]} 4. Nxd4 {[%emt 0:00:00]} g6 {[%emt 0:00:00]} 5. Nc3 {[%emt 0:00:01]} Bg7 {[%emt 0:00:00]} 6. Be3 {[%emt 0:00:12]} Nf6 {[%emt 0:00:00]} 7. Nxc6 {[%emt 0:00:12]} dxc6 {[%emt 0:08:48]} 8. Qxd8+ {[%emt 0:02:00]} Kxd8 {[%emt 0:00:06]} 9. O-O-O+ {[%emt 0:00:34]} Nd7 {[%emt 0:06:17]} 10. Ne2 {[%emt 0:09:16]} Kc7 {[%emt 0:07:55]} 11. Bf4+ {[%emt 0:06:17]} Be5 {[%emt 0:06:04]} 12. Rxd7+ {[%emt 0:11:25]} Kxd7 {[%emt 0:00:07]} 13. Bxe5 {[%emt 0:00:05]} Rd8 {[%emt 0:11:24]} 14. Nf4 {[%emt 0:06:55]} f6 {[%emt 0:11:55]} 15. Bc3 {[%emt 0:01:07]} e5 {[%emt 0:08:47]} 16. Nd3 {[%emt 0:02:27]} Ke7 {[%emt 0:06:21]} 17. f4 {[%emt 0:09:16]} exf4 {[%emt 0:00:24]} 18. Nxf4 {[%emt 0:01:20]} Be6 {[%emt 0:04:05]} 19. Nxe6 {[%emt 0:02:42]} Kxe6 {[%emt 0:00:06]} 20. Bc4+ {[%emt 0:00:16]} Ke7 {[%emt 0:04:41]} 21. Rf1 {[%emt 0:02:39]} f5 {[%emt 0:05:01]} 22. exf5 {[%emt 0:01:35]} gxf5 {[%emt 0:02:01]} 23. Rxf5 {[%emt 0:04:51]} Kd6 {[%emt 0:02:28]} 24. Bb4+ {[%emt 0:11:06]} Kc7 {[%emt 0:00:59]} 25. b3 {[%emt 0:06:17]} Rd7 {[%emt 0:03:30]} 26. Be6 {[%emt 0:02:56]} Rg7 {[%emt 0:01:07]} 27. g4 {[%emt 0:02:45]} Re8 {[%emt 0:01:22]} 28. Bf8 {[%emt 0:03:17]} Rg6 {[%emt 0:02:45]} 29. Bf7 {[%emt 0:02:47]} Re1+ {[%emt 0:00:05]} 30. Kd2 {[%emt 0:01:02]} Ra1 {[%emt 0:01:16]} 31. Bxg6 {[%emt 0:00:23]} hxg6 {[%emt 0:00:06]} 32. Rf7+ {[%emt 0:00:56]} 1-0

[Event "GER-chT Youth Countries 2018"]
[Site "Wurzburg"]
[Date "2018.10.03"]
[Round "2"]
[White "Werner, Denis"]
[Black "Boehm, Jana"]
[Result "0-1"]
[ECO "C11"]
[WhiteElo "1817"]
[BlackElo "2001"]
[Annotator "NA"]
[PlyCount "98"]
[EventDate "2018.10.02"]
[EventType "team-tourn"]
[EventCountry "GER"]
[SourceTitle "playchess.com"]
[Source "ChessBase"]
[SourceQuality "1"]
[TimeControl "40/5400+30:1800+30"]

1. e4 {[%emt 0:00:08]} e6 {[%emt 0:00:00]} 2. Nf3 {[%emt 0:01:16]} d5 {[%emt 0:00:00]} 3. Nc3 {[%emt 0:00:58]} Nf6 {[%emt 0:00:22]} 4. e5 {[%emt 0:02:18]} Nfd7 {[%emt 0:00:10]} 5. d4 {[%emt 0:01:27]} c5 {[%emt 0:00:32]} 6. dxc5 {[%emt 0:01:26]} Nc6 {[%emt 0:00:35]} 7. Bf4 {[%emt 0:01:34]} Bxc5 {[%emt 0:01:05]} 8. Bd3 {[%emt 0:01:23]} f6 {[%emt 0:00:39]} 9. exf6 {[%emt 0:01:36]} Nxf6 {[%emt 0:00:25]} 10. O-O {[%emt 0:01:31]} O-O {[%emt 0:03:09]} 11. Ne5 {[%emt 0:01:13]} Bd7 {[%emt 0:02:07]} 12. Qe2 {[%emt 0:01:28]} Qe7 {[%emt 0:01:56]} 13. Rae1 {[%emt 0:01:45]} Rae8 {[%emt 0:05:00]} 14. Bg3 {[%emt 0:06:21]} a6 {[%emt 0:03:08]} 15. Bh4 {[%emt 0:05:31]} Nxe5 {[%emt 0:04:13]} 16. Qxe5 {[%emt 0:00:50]} Bd6 {[%emt 0:01:11]} 17. Qe2 {[%emt 0:00:59]} Bc6 {[%emt 0:03:52]} 18. f4 {[%emt 0:02:12]} Qc7 {[%emt 0:04:53]} 19. Qe3 {[%emt 0:07:21]} e5 {[%emt 0:03:37]} 20. fxe5 {[%emt 0:02:58]} Bxe5 {[%emt 0:01:43]} 21. Qh3 {[%emt 0:01:12]} Bd7 {[%emt 0:09:21]} 22. Bf5 {[%emt 0:01:54]} Bxf5 {[%emt 0:02:07]} 23. Rxf5 {[%emt 0:02:16]} Bd4+ {[%emt 0:06:19]} 24. Kh1 {[%emt 0:01:46]} Bxc3 {[%emt 0:03:34]} 25. Qxc3 {[%emt 0:01:41]} Qxc3 {[%emt 0:00:51]} 26. bxc3 {[%emt 0:00:43]} Rxe1+ {[%emt 0:00:38]} 27. Bxe1 {[%emt 0:00:39]} Re8 {[%emt 0:00:12]} 28. Bh4 {[%emt 0:01:12]} Kf7 {[%emt 0:09:51]} 29. h3 {[%emt 0:02:09]} Re2 {[%emt 0:02:23]} 30. Bxf6 {[%emt 0:00:56]} Ke6 {[%emt 0:04:33]} 31. Re5+ {[%emt 0:02:09]} Rxe5 {[%emt 0:00:09]} 32. Bxe5 {[%emt 0:00:05]} Kxe5 {[%emt 0:00:03]} 33. Kg1 {[%emt 0:01:08]} d4 {[%emt 0:00:50]} 34. c4 {[%emt 0:01:01]} Kd6 {[%emt 0:00:33]} 35. Kf2 {[%emt 0:01:29]} Kc5 {[%emt 0:00:20]} 36. Kf3 {[%emt 0:00:43]} Kxc4 {[%emt 0:00:31]} 37. Ke4 {[%emt 0:00:07]} b5 {[%emt 0:01:42]} 38. g4 {[%emt 0:01:01]} b4 {[%emt 0:00:34]} 39. h4 {[%emt 0:00:12]} Kc3 {[%emt 0:00:22]} 40. g5 {[%emt 0:00:14]} a5 {[%emt 0:03:12]} 41. h5 {[%emt 0:30:06]} a4 {[%emt 0:32:17]} 42. h6 {[%emt 0:00:13]} gxh6 {[%emt 0:00:37]} 43. gxh6 {[%emt 0:00:20]} b3 {[%emt 0:00:19]} 44. cxb3 {[%emt 0:01:16]} axb3 {[%emt 0:00:08]} 45. axb3 {[%emt 0:00:25]} d3 {[%emt 0:00:04]} 46. b4 {[%emt 0:00:30]} d2 {[%emt 0:00:05]} 47. Kd5 {[%emt 0:00:22]} Kxb4 {[%emt 0:00:19]} 48. Ke6 {[%emt 0:00:10]} d1=Q {[%emt 0:00:08]} 49. Kf7 {[%emt 0:00:04]} Qg4 {[%emt 0:00:18]} 0-1

[Event "GER-chT Youth Countries 2018"]
[Site "Wurzburg"]
[Date "2018.10.03"]
[Round "2"]
[White "Fock, Amina"]
[Black "Genova, Magdalina"]
[Result "1-0"]
[ECO "B23"]
[WhiteElo "1816"]
[BlackElo "1425"]
[Annotator "NA"]
[PlyCount "87"]
[EventDate "2018.10.02"]
[EventType "team-tourn"]
[EventCountry "GER"]
[SourceTitle "playchess.com"]
[Source "ChessBase"]
[SourceQuality "1"]
[TimeControl "40/5400+30:1800+30"]

1. e4 {[%emt 0:00:00]} c5 {[%emt 0:00:00]} 2. Nc3 {[%emt 0:00:00]} d6 {[%emt 0:00:00]} 3. f4 {[%emt 0:00:00]} Nf6 {[%emt 0:07:48]} 4. Nf3 {[%emt 0:02:13]} a6 {[%emt 0:03:46]} 5. a4 {[%emt 0:08:40]} b6 {[%emt 0:02:01]} 6. Bc4 {[%emt 0:06:01]} e6 {[%emt 0:05:06]} 7. Qe2 {[%emt 0:10:34]} Bb7 {[%emt 0:02:01]} 8. e5 {[%emt 0:07:35]} Nfd7 {[%emt 0:09:39]} 9. exd6 {[%emt 0:11:10]} Bxd6 {[%emt 0:02:28]} 10. f5 {[%emt 0:04:27]} O-O {[%emt 0:00:40]} 11. fxe6 {[%emt 0:00:41]} fxe6 {[%emt 0:04:19]} 12. Qxe6+ {[%emt 0:04:46]} Kh8 {[%emt 0:03:36]} 13. Qxd6 {[%emt 0:01:09]} Bxf3 {[%emt 0:02:33]} 14. gxf3 {[%emt 0:00:39]} Qh4+ {[%emt 0:00:28]} 15. Qg3 {[%emt 0:03:20]} Qxc4 {[%emt 0:00:53]} 16. d3 {[%emt 0:02:25]} Qe6+ {[%emt 0:02:00]} 17. Ne4 {[%emt 0:02:37]} Nc6 {[%emt 0:02:34]} 18. O-O {[%emt 0:07:24]} Nd4 {[%emt 0:01:45]} 19. Qg2 {[%emt 0:03:21]} Rae8 {[%emt 0:05:30]} 20. b3 {[%emt 0:04:27]} Nf6 {[%emt 0:01:14]} 21. Be3 {[%emt 0:04:21]} Nd5 {[%emt 0:01:58]} 22. Rae1 {[%emt 0:01:03]} Nf4 {[%emt 0:06:25]} 23. Bxf4 {[%emt 0:01:31]} Rxf4 {[%emt 0:00:56]} 24. Qg3 {[%emt 0:03:21]} Nxf3+ {[%emt 0:15:56]} 25. Kh1 {[%emt 0:04:09]} Nxe1 {[%emt 0:01:12]} 26. Qxf4 {[%emt 0:00:41]} Nxc2 {[%emt 0:01:42]} 27. Qf8+ {[%emt 0:03:04]} Rxf8 {[%emt 0:00:11]} 28. Rxf8+ {[%emt 0:00:04]} Qg8 {[%emt 0:00:11]} 29. Rxg8+ {[%emt 0:00:02]} Kxg8 {[%emt 0:00:06]} 30. a5 {[%emt 0:00:06]} b5 {[%emt 0:03:19]} 31. Nxc5 {[%emt 0:00:17]} Nb4 {[%emt 0:00:18]} 32. Kg2 {[%emt 0:01:23]} Kf7 {[%emt 0:00:35]} 33. Kf3 {[%emt 0:00:38]} Kf6 {[%emt 0:03:49]} 34. Ke4 {[%emt 0:02:23]} g5 {[%emt 0:07:30]} 35. d4 {[%emt 0:01:36]} h6 {[%emt 0:04:20]} 36. d5 {[%emt 0:00:29]} Ke7 {[%emt 0:00:26]} 37. Ke5 {[%emt 0:00:16]} Ke8 {[%emt 0:00:38]} 38. Ke6 {[%emt 0:00:16]} Kf8 {[%emt 0:00:34]} 39. d6 {[%emt 0:00:21]} Nc6 {[%emt 0:00:14]} 40. Kd7 {[%emt 0:00:23]} Nxa5 {[%emt 0:00:47]} 41. Kc7 {[%emt 0:30:22]} Nc6 {[%emt 0:10:30]} 42. Kxc6 {[%emt 0:00:00]} Ke8 {[%emt 0:00:08]} 43. d7+ {[%emt 0:00:00]} Kd8 {[%emt 0:00:07]} 44. Nb7+ {[%emt 0:00:00]} 1-0

[Event "GER-chT Youth Countries 2018"]
[Site "Wurzburg"]
[Date "2018.10.03"]
[Round "2"]
[White "Reitz, Theresa"]
[Black "Laux, Dominik"]
[Result "1/2-1/2"]
[ECO "A06"]
[WhiteElo "1788"]
[BlackElo "1987"]
[Annotator "NA"]
[PlyCount "88"]
[EventDate "2018.10.02"]
[EventType "team-tourn"]
[EventCountry "GER"]
[SourceTitle "playchess.com"]
[Source "ChessBase"]
[SourceQuality "1"]
[TimeControl "40/5400+30:1800+30"]

1. Nf3 {[%emt 0:00:00]} d5 {[%emt 0:00:03]} 2. g3 {[%emt 0:00:00]} Nf6 {[%emt 0:00:36]} 3. Bg2 {[%emt 0:00:00]} e6 {[%emt 0:00:48]} 4. O-O {[%emt 0:00:14]} Be7 {[%emt 0:00:24]} 5. d4 {[%emt 0:01:15]} O-O {[%emt 0:00:39]} 6. c4 {[%emt 0:02:02]} c6 {[%emt 0:00:45]} 7. Nc3 {[%emt 0:02:28]} b6 {[%emt 0:01:02]} 8. b3 {[%emt 0:02:56]} Nbd7 {[%emt 0:03:26]} 9. Bb2 {[%emt 0:02:47]} Ba6 {[%emt 0:01:28]} 10. Nd2 {[%emt 0:06:51]} Rc8 {[%emt 0:03:47]} 11. Rc1 {[%emt 0:02:53]} b5 {[%emt 0:10:35]} 12. Re1 {[%emt 0:05:19]} Nb6 {[%emt 0:06:28]} 13. c5 {[%emt 0:06:51]} b4 {[%emt 0:01:21]} 14. cxb6 {[%emt 0:04:48]} bxc3 {[%emt 0:00:24]} 15. Bxc3 {[%emt 0:00:13]} Qxb6 {[%emt 0:04:08]} 16. e4 Rfd8 {[%emt 0:05:20]} 17. Bb2 {[%emt 0:18:45]} Bb4 {[%emt 0:11:47]} 18. e5 {[%emt 0:04:44]} Nd7 {[%emt 0:01:05]} 19. Bf1 {[%emt 0:02:57]} Bxf1 {[%emt 0:03:11]} 20. Rxf1 {[%emt 0:00:30]} Qa5 {[%emt 0:08:21]} 21. Rc2 {[%emt 0:09:02]} Qxa2 {[%emt 0:03:32]} 22. Bc3 {[%emt 0:07:59]} Qa5 {[%emt 0:02:23]} 23. Bxb4 {[%emt 0:00:24]} Qxb4 {[%emt 0:00:06]} 24. Qa1 {[%emt 0:00:14]} Rc7 {[%emt 0:02:36]} 25. Rfc1 {[%emt 0:03:11]} Rdc8 {[%emt 0:01:29]} 26. Qa6 {[%emt 0:02:23]} Qb6 {[%emt 0:09:16]} 27. Qd3 {[%emt 0:01:15]} c5 {[%emt 0:03:07]} 28. dxc5 {[%emt 0:02:34]} Rxc5 {[%emt 0:02:35]} 29. Rxc5 {[%emt 0:00:35]} Rxc5 {[%emt 0:01:25]} 30. Rxc5 {[%emt 0:01:16]} Qxc5 {[%emt 0:01:09]} 31. Nf3 {[%emt 0:01:35]} h6 {[%emt 0:01:06]} 32. Kg2 {[%emt 0:00:31]} Qb6 {[%emt 0:05:06]} 33. Qc3 {[%emt 0:01:03]} Nc5 {[%emt 0:00:36]} 34. Nd2 {[%emt 0:01:34]} a5 {[%emt 0:01:39]} 35. Qd4 {[%emt 0:02:17]} Qb5 {[%emt 0:01:30]} 36. Qc3 {[%emt 0:01:03]} a4 {[%emt 0:02:58]} 37. bxa4 {[%emt 0:00:24]} Nxa4 {[%emt 0:00:07]} 38. Qc8+ {[%emt 0:01:11]} Kh7 {[%emt 0:00:06]} 39. Qc2+ {[%emt 0:01:30]} g6 {[%emt 0:01:21]} 40. Qc7 {[%emt 0:01:05]} Qe8 {[%emt 0:00:52]} 41. Nf3 {[%emt 0:30:31]} Nb2 {[%emt 0:31:20]} 42. h4 {[%emt 0:02:19]} Nc4 {[%emt 0:00:00]} 43. Nh2 {[%emt 0:00:00]} Kg7 {[%emt 0:00:00]} 44. Ng4 {[%emt 0:00:00]} Qf8 {[%emt 0:00:00]} 1/2-1/2

[Event "GER-chT Youth Countries 2018"]
[Site "Wurzburg"]
[Date "2018.10.03"]
[Round "2"]
[White "Lutz, Adam"]
[Black "Basovskiy, Jana"]
[Result "1-0"]
[ECO "B40"]
[WhiteElo "1787"]
[BlackElo "1772"]
[Annotator "NA"]
[PlyCount "85"]
[EventDate "2018.10.02"]
[EventType "team-tourn"]
[EventCountry "GER"]
[SourceTitle "playchess.com"]
[Source "ChessBase"]
[SourceQuality "1"]
[TimeControl "40/5400+30:1800+30"]

1. e4 {[%emt 0:00:00]} c5 {[%emt 0:00:00]} 2. Nf3 {[%emt 0:00:00]} e6 {[%emt 0:00:00]} 3. d4 {[%emt 0:00:02]} cxd4 {[%emt 0:00:00]} 4. Nxd4 {[%emt 0:00:07]} Nf6 {[%emt 0:00:30]} 5. Nc3 {[%emt 0:00:07]} Nc6 {[%emt 0:00:02]} 6. Be3 {[%emt 0:04:53]} Bb4 {[%emt 0:00:28]} 7. Bd3 {[%emt 0:03:48]} d5 {[%emt 0:01:46]} 8. Nxc6 {[%emt 0:01:44]} bxc6 {[%emt 0:02:17]} 9. Bd2 {[%emt 0:04:18]} O-O {[%emt 0:16:15]} 10. O-O {[%emt 0:01:43]} Bb7 {[%emt 0:15:00]} 11. Nxd5 {[%emt 0:05:05]} Nxd5 {[%emt 0:04:08]} 12. exd5 {[%emt 0:00:19]} Qxd5 {[%emt 0:04:46]} 13. Bxb4 {[%emt 0:00:40]} c5 {[%emt 0:00:03]} 14. Bxh7+ {[%emt 0:00:27]} Kxh7 {[%emt 0:00:48]} 15. Qxd5 {[%emt 0:00:11]} Bxd5 {[%emt 0:00:23]} 16. Bxc5 {[%emt 0:00:23]} Rfc8 {[%emt 0:00:36]} 17. b4 {[%emt 0:00:47]} a5 {[%emt 0:02:05]} 18. a3 {[%emt 0:00:43]} Kg6 {[%emt 0:02:12]} 19. f3 {[%emt 0:01:38]} Rc6 {[%emt 0:07:14]} 20. Rfd1 {[%emt 0:02:31]} axb4 {[%emt 0:10:39]} 21. axb4 {[%emt 0:00:26]} Rca6 {[%emt 0:00:27]} 22. Rxa6 {[%emt 0:00:49]} Rxa6 {[%emt 0:00:05]} 23. Rc1 {[%emt 0:00:57]} Bc4 {[%emt 0:00:29]} 24. Kf2 {[%emt 0:00:19]} Ra3 {[%emt 0:05:12]} 25. Ke1 {[%emt 0:03:32]} Ra8 {[%emt 0:04:24]} 26. Kd2 {[%emt 0:01:55]} Ra3 {[%emt 0:02:27]} 27. Rb1 {[%emt 0:03:32]} Bb5 {[%emt 0:00:52]} 28. Bd4 {[%emt 0:01:59]} Ra8 {[%emt 0:06:07]} 29. Ra1 {[%emt 0:03:15]} Rxa1 {[%emt 0:04:32]} 30. Bxa1 {[%emt 0:00:15]} f6 {[%emt 0:00:55]} 31. Kc3 {[%emt 0:00:27]} e5 {[%emt 0:00:23]} 32. Kb3 {[%emt 0:00:18]} Kf5 {[%emt 0:00:29]} 33. c4 {[%emt 0:00:14]} Bd7 {[%emt 0:02:37]} 34. b5 {[%emt 0:02:12]} Ke6 {[%emt 0:00:48]} 35. Kb4 {[%emt 0:00:40]} Kd6 {[%emt 0:00:51]} 36. Bc3 {[%emt 0:01:14]} Bc8 {[%emt 0:02:21]} 37. Be1 {[%emt 0:01:09]} Bb7 {[%emt 0:02:38]} 38. Bf2 {[%emt 0:01:11]} Bc8 {[%emt 0:00:26]} 39. Bc5+ {[%emt 0:00:53]} Kd7 {[%emt 0:03:00]} 40. Ka5 {[%emt 0:01:55]} Kc7 {[%emt 0:00:25]} 41. Bf8 {[%emt 0:31:10]} g6 {[%emt 0:31:06]} 42. Bg7 {[%emt 0:00:43]} f5 {[%emt 0:00:09]} 43. Bxe5+ {[%emt 0:00:10]} 1-0